fUST/lending_fUST_20250604
["ID","MTS","AMOUNT","RATE_DAILY","PERIOD"]
[364043126,1748974496133,297.109047,0.00013699,2]
[364043129,1748974776066,-153.0,0.00015945,2]
[364043131,1748974843815,-1590.0,0.00015944,2]
[364043135,1748975294174,411.92845582,0.00010618,2]
[364043136,1748975307276,275.68690841,0.00014114,2]
[364043137,1748975313308,24900.0,0.00015397,2]
[364043138,1748975313419,10000.0,0.00015397,2]
[364043139,1748975323793,354.05618846,0.00015,5]
[364043140,1748975336540,676.674218,0.00015397,2]
[364043144,1748975395056,246.60596187,0.0001552,2]
[364043151,1748975409815,1000.0,2e-06,2]
[364043152,1748975410429,1000.0,2e-06,2]
[364043153,1748975410708,1000.0,2e-06,2]
[364043154,1748975411106,1000.0,2e-06,2]
[364043155,1748975411548,1000.0,2e-06,2]
[364043156,1748975412076,1000.0,2e-06,2]
[364043157,1748975412639,1000.0,2e-06,2]
[364043158,1748975412856,1000.0,2e-06,2]
[364043159,1748975413259,1000.0,2e-06,2]
[364043160,1748975413796,1000.0,2e-06,2]
[364043161,1748975414071,1000.0,2e-06,2]
[364043162,1748975424742,1000.0,2e-06,2]
[364043163,1748975425953,1000.0,2e-06,2]
[364043164,1748975426905,1000.0,2e-06,2]
[364043179,1748975432164,-38.60286689,0.00015945,2]
[364043180,1748975432174,-164.90024096,0.00016342,2]
[364043181,1748975432184,-164.90024096,0.00016348,2]
[364043182,1748975432193,-300.0,0.00016431,2]
[364043183,1748975432202,-300.0,0.00016431,2]
[364043184,1748975432212,-300.0,0.00016431,2]
[364043185,1748975432222,-300.0,0.00016431,2]
[364043186,1748975432231,-300.0,0.00016431,2]
[364043187,1748975432240,-1200.0,0.00016431,2]
[364043188,1748975432249,-23377.60646048,0.00016432,2]
[364043189,1748975432264,-4396.19198468,0.00016432,2]
[364043216,1748975438062,-6457.45919239,0.00016432,2]
[364043217,1748975438118,-15768.74236245,0.00016432,2]
[364043218,1748975438127,-160.0,0.00016433,2]
[364043219,1748975438136,-440.0,0.00016438,2]
[364043220,1748975438146,-430.0,0.00016438,2]
[364043221,1748975438155,-440.0,0.00016438,2]
[364043222,1748975438164,-440.0,0.00016438,2]
[364043223,1748975438173,-409.55664954,0.00016438,2]
[364043224,1748975438182,-430.0,0.00016438,2]
[364043225,1748975438191,-440.0,0.00016438,2]
[364043226,1748975438200,-440.0,0.00016438,2]
[364043227,1748975438210,-287.49,0.00016438,2]
[364043228,1748975438219,-464.31,0.00016438,2]
[364043229,1748975438228,-430.0,0.00016438,2]
[364043230,1748975438238,-440.0,0.00016438,2]
[364043231,1748975438247,-440.0,0.00016438,2]
[364043232,1748975438256,-440.0,0.00016438,2]
[364043233,1748975438265,-440.0,0.00016438,2]
[364043234,1748975438274,-440.0,0.00016438,2]
[364043235,1748975438283,-430.0,0.00016438,2]
[364043236,1748975438292,-440.0,0.00016438,2]
[364043237,1748975438304,-440.0,0.00016438,2]
[364043238,1748975438314,-420.0,0.00016712,2]
[364043239,1748975438324,-420.0,0.00016712,2]
[364043240,1748975438334,-420.0,0.00016712,2]
[364043241,1748975438344,-440.0,0.00016712,2]
[364043242,1748975438354,-440.0,0.00016712,2]
[364043243,1748975438364,-464.31,0.00016712,2]
[364043244,1748975438374,-440.0,0.00016712,2]
[364043245,1748975438384,-440.0,0.00016712,2]
[364043246,1748975438394,-440.0,0.00016712,2]
[364043247,1748975438404,-440.0,0.00016712,2]
[364043248,1748975438414,-440.0,0.00016712,2]
[364043249,1748975438423,-440.0,0.00016712,2]
[364043250,1748975438432,-251.43,0.00016712,2]
[364043251,1748975438443,-443.46684055,0.00016886,2]
[364043252,1748975438452,-246.47726173,0.000169,2]
[364043253,1748975438462,-440.0,0.00016986,2]
[364043254,1748975438471,-440.0,0.00016986,2]
[364043255,1748975438482,-464.31,0.00016986,2]
[364043256,1748975438491,-516.38,0.00016986,2]
[364043257,1748975438501,-440.0,0.00016986,2]
[364043258,1748975438510,-440.0,0.00016986,2]
[364043259,1748975438519,-410.0,0.00016986,2]
[364043260,1748975438529,-440.0,0.00016986,2]
[364043261,1748975438538,-440.0,0.00016986,2]
[364043262,1748975438548,-166.0,0.00017014,3]
[364043263,1748975438557,-246.4772616,0.00017176,2]
[364043264,1748975438568,-258.11360058,0.00017259,2]
[364043265,1748975438579,-500.0,0.00017259,2]
[364043266,1748975438588,-500.0,0.00017259,2]
[364043267,1748975438599,-500.0,0.00017259,2]
[364043268,1748975438609,-500.0,0.00017259,2]
[364043269,1748975438624,-194.31691311,0.00017259,2]
[364043270,1748975438634,-226.89967068,0.00017259,2]
[364043271,1748975438643,-500.0,0.00017259,2]
[364043272,1748975438653,-500.0,0.00017259,2]
[364043273,1748975438662,-500.0,0.00017259,2]
[364043274,1748975438671,-617.97049397,0.00017259,2]
[364043275,1748975438682,-208.33027628,0.00017259,2]
[364043276,1748975438691,-160.9360826,0.00017259,2]
[364043277,1748975438701,-544.66994544,0.00017259,2]
[364043278,1748975438711,-500.0,0.00017259,2]
[364043279,1748975438721,-216.70405581,0.00017259,2]
[364043280,1748975438730,-260.63470072,0.00017259,2]
[364043281,1748975438740,-500.0,0.00017259,2]
[364043282,1748975438749,-440.0,0.0001726,2]
[364043283,1748975438759,-440.0,0.0001726,2]
[364043284,1748975438768,-464.31,0.0001726,2]
[364043285,1748975438778,-440.0,0.0001726,2]
[364043286,1748975438787,-440.0,0.0001726,2]
[364043287,1748975438797,-440.0,0.0001726,2]
[364043288,1748975438806,-440.0,0.0001726,2]
[364043289,1748975438816,-246.4772616,0.00017452,2]
[364043290,1748975438826,-440.0,0.00017534,2]
[364043291,1748975438836,-209.68,0.00017534,2]
[364043292,1748975438846,-464.31,0.00017534,2]
[364043293,1748975438856,-440.0,0.00017534,2]
[364043294,1748975438866,-440.0,0.00017534,2]
[364043295,1748975438875,-577.94,0.00017534,2]
[364043296,1748975438885,-440.0,0.00017534,2]
[364043298,1748975438894,-246.4772616,0.00017728,2]
[364043299,1748975438904,-440.0,0.00017808,2]
[364043300,1748975438913,-464.31,0.00017808,2]
[364043301,1748975438923,-440.0,0.00017808,2]
[364043302,1748975438932,-440.0,0.00017808,2]
[364043304,1748975438943,-245.75124812,0.00017808,2]
[364043305,1748975438953,-420.0,0.00017957,2]
[364043307,1748975438963,-246.4772616,0.00018003,2]
[364043308,1748975438973,-440.0,0.00018082,2]
[364043310,1748975438983,-464.31,0.00018082,2]
[364043311,1748975438993,-440.0,0.00018082,2]
[364043313,1748975439002,-440.0,0.00018082,2]
[364043315,1748975439017,-246.4772616,0.00018279,2]
[364043317,1748975439027,-440.0,0.00018356,2]
[364043319,1748975439037,-464.31,0.00018356,2]
[364043321,1748975439046,-440.0,0.00018356,2]
[364043323,1748975439056,-265.03,0.00018356,2]
[364043325,1748975439065,-246.4772616,0.00018555,2]
[364043327,1748975439074,-229.42821335,0.00018572,2]
[364043329,1748975439084,-160.0,0.00018572,2]
[364043331,1748975439093,-423.63107087,0.00018572,2]
[364043333,1748975439103,-160.0,0.00018572,2]
[364043335,1748975439112,-440.0,0.0001863,2]
[364043337,1748975439123,-464.31,0.0001863,2]
[364043339,1748975439132,-440.0,0.0001863,2]
[364043341,1748975439142,-246.4772616,0.00018831,2]
[364043343,1748975439152,-263.98051742,0.000189,2]
[364043345,1748975439162,-440.0,0.00018904,2]
[364043347,1748975439171,-464.31,0.00018904,2]
[364043349,1748975439182,-440.0,0.00018904,2]
[364043351,1748975439191,-246.4772616,0.00019107,2]
[364043353,1748975439201,-440.0,0.00019178,2]
[364043355,1748975439211,-464.31,0.00019178,2]
[364043357,1748975439221,-440.0,0.00019178,2]
[364043359,1748975439231,-500.0,0.00019178,2]
[364043361,1748975439241,-500.0,0.00019178,2]
[364043363,1748975439251,-212.73371435,0.00019178,2]
[364043365,1748975439260,-246.4772616,0.00019383,2]
[364043367,1748975439269,-440.0,0.00019452,2]
[364043369,1748975439279,-464.31,0.00019452,2]
[364043371,1748975439289,-440.0,0.00019452,2]
[364043373,1748975439301,-246.4772616,0.00019659,2]
[364043375,1748975439311,-440.0,0.00019726,2]
[364043377,1748975439321,-464.31,0.00019726,2]
[364043379,1748975439332,-440.0,0.00019726,2]
[364043381,1748975439342,-182.04147167,0.00019789,2]
[364043383,1748975439352,-246.4772616,0.00019934,2]
[364043385,1748975439362,-395.07,0.0002,2]
[364043386,1748975439372,-464.31,0.0002,2]
[364043388,1748975439382,-440.0,0.0002,2]
[364043390,1748975439392,-297.109047,0.00020187,2]
[364043392,1748975439405,-246.4772616,0.0002021,2]
[364043394,1748975439421,-464.31,0.00020273,2]
[364043396,1748975439430,-440.0,0.00020273,2]
[364043399,1748975439441,-246.4772616,0.00020486,3]
[364043401,1748975439450,-464.31,0.00020547,2]
[364043403,1748975439460,-440.0,0.00020547,2]
[364043405,1748975439470,-977.62,0.000206,2]
[364043406,1748975439479,-962.0,0.00020661,2]
[364043408,1748975439489,-405.0,0.00020661,2]
[364043410,1748975439499,-246.4772616,0.00020762,3]
[364043412,1748975439508,-464.31,0.00020821,2]
[364043414,1748975439518,-440.0,0.00020821,2]
[364043416,1748975439528,-424.26,0.0002099,10]
[364043418,1748975439538,-45357.17325758,0.00021,7]
[364043420,1748975439548,-246.4772616,0.00021038,4]
[364043423,1748975439558,-500.0,0.00021084,2]
[364043424,1748975439568,-464.31,0.00021095,2]
[364043427,1748975439577,-381.53,0.00021095,2]
[364043429,1748975439588,-246.4772616,0.00021314,5]
[364043431,1748975439598,-464.31,0.00021369,2]
[364043433,1748975439607,-246.4772616,0.0002159,5]
[364043435,1748975439617,-207.4,0.00021641,2]
[364043437,1748975439626,-464.31,0.00021643,2]
[364043439,1748975439636,-246.4772616,0.00021866,6]
[364043441,1748975439645,-464.31,0.00021917,2]
[364043443,1748975439656,-1202.89,0.00022,2]
[364043445,1748975439666,-20583.56698152,0.00022,2]
[364043447,1748975439675,-165.37665368,0.00022,10]
[364043449,1748975439685,-246.4772616,0.00022141,6]
[364043451,1748975439695,-464.31,0.00022191,2]
[364043453,1748975439705,-510.45975574,0.0002238,5]
[364043455,1748975439715,-246.4772616,0.00022417,7]
[364043457,1748975439725,-464.31,0.00022465,2]
[364043459,1748975439735,-977.62,0.000225,7]
[364043461,1748975439745,-2095.6,0.000225,60]
[364043463,1748975439755,-246.4772616,0.00022693,7]
[364043465,1748975439764,-3179.85538315,0.00022712,7]
[364043467,1748975439773,-464.5071679,0.00022739,2]
[364043469,1748975439783,-246.4772616,0.00022969,8]
[364043471,1748975439792,-500.0,0.00023,2]
[364043473,1748975439803,-23985.09808003,0.00023,2]
[364043475,1748975439812,-1103.05249401,0.00023,20]
[364043476,1748975439821,-1326.6462031,0.00023,2]
[364043478,1748975439831,-215.0738,0.0002301,2]
[364043481,1748975439841,-676.674218,0.00023095,2]
[364043482,1748975439851,-5000.0,0.00023105,2]
[364043485,1748975439861,-246.4772616,0.00023245,8]
[364043488,1748975439870,-1892.0337929,0.000233,15]
[364043490,1748975439880,-427.53,0.00023483,8]
[364043492,1748975439890,-3818.63285145,0.000235,2]
[364043494,1748975439900,-47440.32521249,0.000235,2]
[364043497,1748975439910,-246.4772616,0.00023521,9]
[364043498,1748975439919,-275.5,0.000236,8]
[364043500,1748975439929,-962.0,0.00023661,2]
[364043502,1748975439938,-405.0,0.00023661,2]
[364043504,1748975439947,-2200.0,0.00023783,2]
[364043506,1748975439956,-246.4772616,0.00023797,9]
[364043508,1748975439966,-500.0,0.00023799,2]
[364043510,1748975439975,-500.0,0.00023799,2]
[364043512,1748975439984,-500.0,0.00023799,2]
[364043514,1748975439994,-500.0,0.00023799,2]
[364043516,1748975440006,-500.0,0.00023799,2]
[364043518,1748975440017,-500.0,0.00023799,2]
[364043520,1748975440026,-553.095455,0.00023799,2]
[364043522,1748975440036,-500.0,0.00023799,2]
[364043524,1748975440047,-2688.30929008,0.000238,2]
[364043526,1748975440057,-13818.76985976,0.000238,3]
[364043528,1748975440067,-246932.63842383,0.000238,2]
[364043555,1748975440315,-1290.0,0.00022284,2]
[364044116,1748975446095,-935.0,0.00022284,2]
[364044118,1748975446106,-709.0,0.00022284,2]
[364044120,1748975446116,-17748.59473919,0.000238,2]
[364046550,1748975551729,-175.98701161,0.000217,2]
[364046551,1748975551753,-1082.6,0.00022,2]
[364046552,1748975551776,-166.89117206,0.00023704,2]
[364046553,1748975551800,-166.89117199,0.00023752,2]
[364046554,1748975551826,-182.72807385,0.00023756,2]
[364046555,1748975551850,-424.85,0.0002379,10]
[364046556,1748975551873,-738.24,0.0002379,10]
[364046557,1748975551896,-615.2,0.0002379,10]
[364046558,1748975551919,-1275.57239231,0.00023799,19]
[364046559,1748975551943,-615.9286365,0.00023799,2]
[364046560,1748975551968,-300.0,0.00023799,2]
[364046561,1748975551993,-166.89117199,0.00023799,2]
[364046562,1748975552017,-229.42821335,0.000238,3]
[364046563,1748975552043,-7863.79215634,0.000238,3]
[364046565,1748975715510,278.194698,0.00013699,2]
[364046573,1748975931672,5000.0,0.0001552,2]
[364046574,1748975942987,-300.0,0.00015618,2]
[364046575,1748975943009,-884.1308203,0.00015619,2]
[364046576,1748975943032,-26978.8691797,0.00015619,2]
[364046577,1748975947266,5000.0,0.0001552,2]
[364046578,1748975963424,5000.0,0.0001552,2]
[364046579,1748975977927,3600.0,0.00024658,120]
[364046580,1748975979858,5000.0,0.0001552,2]
[364046581,1748975995621,5000.0,0.0001552,2]
[364046583,1748976011785,5000.0,0.0001552,2]
[364046584,1748976027482,4897.0,0.0001552,2]
[364046585,1748976066009,507.85,0.00024658,120]
[364046586,1748976085906,2037.34043973,0.0001552,2]
[364046587,1748976101511,5000.0,0.0001552,2]
[364046591,1748976247302,471.31454932,0.0001552,2]
[364046592,1748976383631,24900.0,0.00015446,2]
[364046598,1748976487643,338.337109,0.00015446,2]
[364046599,1748976513045,278.0766187,0.00015446,2]
[364046618,1748976632165,-409.4375581,0.00015619,2]
[364046619,1748976632175,-164.90024098,0.00016335,2]
[364046620,1748976632185,-171.0,0.00016434,2]
[364046621,1748976632194,-300.0,0.00016435,2]
[364046622,1748976632204,-300.0,0.00016435,2]
[364046623,1748976632214,-191.0,0.00016435,2]
[364046624,1748976632223,-300.0,0.00016435,2]
[364046625,1748976632234,-1200.0,0.00016435,2]
[364046626,1748976632243,-179.77449933,0.00016437,2]
[364046627,1748976632252,-195.62607786,0.00016437,2]
[364046628,1748976632262,-212.24669909,0.00016437,2]
[364046629,1748976632272,-521.42349721,0.00016438,2]
[364046630,1748976632281,-430.0,0.00016438,2]
[364046631,1748976632291,-430.0,0.00016438,2]
[364046632,1748976632301,-278.05964171,0.00016438,2]
[364046633,1748976632330,-151.94035829,0.00016438,2]
[364046634,1748976632340,-430.0,0.00016438,2]
[364046635,1748976632351,-430.0,0.00016438,2]
[364046636,1748976632361,-430.0,0.00016438,2]
[364046637,1748976632371,-430.0,0.00016438,2]
[364046638,1748976632380,-430.0,0.00016438,2]
[364046639,1748976632389,-430.0,0.00016438,2]
[364046640,1748976632399,-430.0,0.00016438,2]
[364046641,1748976632408,-531.40071955,0.00016438,2]
[364046643,1748976632418,-430.0,0.00016438,2]
[364046645,1748976632427,-430.0,0.00016438,2]
[364046646,1748976632442,-430.0,0.00016438,2]
[364046647,1748976632452,-430.0,0.00016438,2]
[364046648,1748976632461,-430.0,0.00016438,2]
[364046649,1748976632472,-430.0,0.00016438,2]
[364046650,1748976632482,-430.0,0.00016438,2]
[364046651,1748976632492,-430.0,0.00016438,2]
[364046652,1748976632502,-430.0,0.00016438,2]
[364046653,1748976632512,-430.0,0.00016438,2]
[364046654,1748976632522,-500.0,0.00016438,2]
[364046655,1748976632532,-1085.41683742,0.00016438,2]
[364046656,1748976632542,-536.71112375,0.00016438,2]
[364046657,1748976632552,-430.0,0.00016438,2]
[364046658,1748976632562,-430.0,0.00016438,2]
[364046659,1748976632572,-430.0,0.00016438,2]
[364046660,1748976632582,-219.62909382,0.00016438,2]
[364046661,1748976632592,-430.0,0.00016438,2]
[364046662,1748976632602,-430.0,0.00016438,2]
[364046663,1748976632612,-198.45412451,0.00016438,2]
[364046664,1748976632622,-504.30959861,0.00016438,2]
[364046665,1748976632631,-430.0,0.00016438,2]
[364046666,1748976632641,-430.0,0.00016438,2]
[364046667,1748976632652,-430.0,0.00016438,2]
[364046668,1748976632662,-430.0,0.00016438,2]
[364046669,1748976632672,-390.0,0.00016438,2]
[364046670,1748976632681,-400.0,0.00016438,2]
[364046671,1748976632691,-430.0,0.00016438,2]
[364046672,1748976632700,-430.0,0.00016438,2]
[364046673,1748976632710,-453.33737433,0.00016438,2]
[364046674,1748976632720,-502.74692449,0.00016438,2]
[364046675,1748976632729,-430.0,0.00016438,2]
[364046676,1748976632739,-400.0,0.00016438,2]
[364046677,1748976632748,-476.19574312,0.00016438,2]
[364046678,1748976632757,-430.0,0.00016438,2]
[364046679,1748976632767,-430.0,0.00016438,2]
[364046680,1748976632777,-430.0,0.00016438,2]
[364046681,1748976632787,-430.0,0.00016438,2]
[364046682,1748976632796,-430.0,0.00016438,2]
[364046683,1748976632805,-430.0,0.00016438,2]
[364046684,1748976632813,-300.0,0.00016438,2]
[364046685,1748976632822,-430.0,0.00016438,2]
[364046686,1748976632832,-430.0,0.00016438,2]
[364046687,1748976632840,-430.0,0.00016438,2]
[364046688,1748976632849,-202.81813816,0.00016438,2]
[364046689,1748976632858,-440.0,0.00016438,2]
[364046690,1748976632868,-323.87678373,0.00016438,2]
[364046691,1748976632877,-520.25112468,0.00016438,2]
[364046692,1748976632886,-430.0,0.00016438,2]
[364046693,1748976632896,-440.0,0.00016438,2]
[364046694,1748976632905,-440.0,0.00016438,2]
[364046695,1748976632915,-430.0,0.00016438,2]
[364046696,1748976632924,-430.0,0.00016438,2]
[364046697,1748976632934,-400.0,0.00016438,2]
[364046698,1748976632943,-430.0,0.00016438,2]
[364046699,1748976632953,-430.0,0.00016438,2]
[364046700,1748976632963,-430.0,0.00016438,2]
[364046701,1748976632974,-440.0,0.00016438,2]
[364046702,1748976632983,-430.0,0.00016438,2]
[364046703,1748976632993,-302.94783816,0.00016438,2]
[364046704,1748976633003,-163.89533635,0.00016438,2]
[364046705,1748976633013,-409.17475399,0.00016438,2]
[364046706,1748976633022,-430.0,0.00016438,2]
[364046707,1748976633033,-430.0,0.00016438,2]
[364046708,1748976633043,-430.0,0.00016438,2]
[364046709,1748976633053,-430.0,0.00016438,2]
[364046710,1748976633064,-440.0,0.00016438,2]
[364046711,1748976633074,-430.0,0.00016438,2]
[364046712,1748976633084,-500.47142295,0.00016438,2]
[364046713,1748976633094,-431.7382822,0.00016438,2]
[364046714,1748976633106,-442.11988887,0.00016438,2]
[364046715,1748976633115,-430.0,0.00016438,2]
[364046716,1748976633125,-430.0,0.00016438,2]
[364046717,1748976633135,-440.0,0.00016438,2]
[364046718,1748976633145,-440.0,0.00016438,2]
[364046719,1748976633154,-430.0,0.00016438,2]
[364046720,1748976633164,-440.0,0.00016438,2]
[364046721,1748976633175,-430.0,0.00016438,2]
[364046722,1748976633184,-440.0,0.00016438,2]
[364046723,1748976633195,-521.57142261,0.00016438,2]
[364046724,1748976633205,-440.0,0.00016438,2]
[364046725,1748976633215,-430.0,0.00016438,2]
[364046726,1748976633224,-440.0,0.00016438,2]
[364046727,1748976633360,-440.0,0.00016438,2]
[364046728,1748976633371,-430.0,0.00016438,2]
[364046729,1748976633381,-470.0,0.00016438,2]
[364046730,1748976633392,-430.0,0.00016438,2]
[364046731,1748976633401,-440.0,0.00016438,2]
[364046732,1748976633412,-430.0,0.00016438,2]
[364046733,1748976633422,-430.0,0.00016438,2]
[364046734,1748976633434,-430.0,0.00016438,2]
[364046735,1748976633445,-430.0,0.00016438,2]
[364046736,1748976633455,-440.0,0.00016438,2]
[364046737,1748976633465,-440.0,0.00016438,2]
[364046738,1748976633475,-400.0,0.00016438,2]
[364046739,1748976633487,-440.0,0.00016438,2]
[364046740,1748976633498,-430.0,0.00016438,2]
[364046741,1748976633511,-430.0,0.00016438,2]
[364046742,1748976633522,-440.0,0.00016438,2]
[364046743,1748976633533,-430.0,0.00016438,2]
[364046744,1748976633544,-430.0,0.00016438,2]
[364046745,1748976633554,-440.0,0.00016438,2]
[364046746,1748976633565,-500.0,0.00016438,2]
[364046747,1748976633575,-440.0,0.00016438,2]
[364046748,1748976633585,-440.0,0.00016438,2]
[364046749,1748976633595,-430.0,0.00016438,2]
[364046750,1748976633606,-430.0,0.00016438,2]
[364046751,1748976633616,-372.70211075,0.00016438,2]
[364046752,1748976633626,-430.0,0.00016438,2]
[364046753,1748976633636,-440.0,0.00016438,2]
[364046754,1748976633646,-430.0,0.00016438,2]
[364046755,1748976633656,-440.0,0.00016438,2]
[364046756,1748976633666,-430.0,0.00016438,2]
[364046757,1748976633677,-440.0,0.00016438,2]
[364046758,1748976633687,-440.0,0.00016438,2]
[364046759,1748976633698,-500.0,0.00016438,2]
[364046760,1748976633708,-500.0,0.00016438,2]
[364046761,1748976633717,-500.0,0.00016438,2]
[364046762,1748976633727,-500.0,0.00016438,2]
[364046763,1748976633737,-500.0,0.00016438,2]
[364046764,1748976633747,-500.0,0.00016438,2]
[364046765,1748976633757,-430.0,0.00016438,2]
[364046766,1748976633767,-440.0,0.00016438,2]
[364046767,1748976633778,-440.0,0.00016438,2]
[364046768,1748976633788,-440.0,0.00016438,2]
[364046769,1748976633797,-440.0,0.00016438,2]
[364046770,1748976633807,-430.0,0.00016438,2]
[364046771,1748976633816,-440.0,0.00016438,2]
[364046772,1748976633826,-440.0,0.00016438,2]
[364046773,1748976633836,-430.0,0.00016438,2]
[364046774,1748976633845,-430.0,0.00016438,2]
[364046775,1748976633856,-440.0,0.00016438,2]
[364046776,1748976633866,-430.0,0.00016438,2]
[364046777,1748976633876,-544.74875674,0.00016438,2]
[364046778,1748976633885,-440.0,0.00016438,2]
[364046779,1748976633895,-430.0,0.00016438,2]
[364046780,1748976633904,-440.0,0.00016438,2]
[364046781,1748976633913,-430.0,0.00016438,2]
[364046782,1748976633923,-440.0,0.00016438,2]
[364046783,1748976633934,-430.0,0.00016438,2]
[364046784,1748976633943,-350.0,0.00016438,2]
[364046785,1748976633954,-430.0,0.00016438,2]
[364046786,1748976633964,-440.0,0.00016438,2]
[364046787,1748976633974,-440.0,0.00016438,2]
[364046788,1748976633984,-430.0,0.00016438,2]
[364046789,1748976633994,-430.0,0.00016438,2]
[364046790,1748976634003,-430.0,0.00016438,2]
[364046791,1748976634013,-430.0,0.00016438,2]
[364046792,1748976634023,-430.0,0.00016438,2]
[364046793,1748976634032,-440.0,0.00016438,2]
[364046794,1748976634042,-430.0,0.00016438,2]
[364046795,1748976634052,-440.0,0.00016438,2]
[364046796,1748976634062,-440.0,0.00016438,2]
[364046797,1748976634072,-430.0,0.00016438,2]
[364046798,1748976634082,-430.0,0.00016438,2]
[364046799,1748976634092,-430.0,0.00016438,2]
[364046800,1748976634102,-390.0,0.00016438,2]
[364046801,1748976634112,-430.0,0.00016438,2]
[364046802,1748976634122,-430.0,0.00016438,2]
[364046803,1748976634132,-392.09651185,0.00016438,2]
[364046804,1748976634142,-440.0,0.00016438,2]
[364046805,1748976634152,-430.0,0.00016438,2]
[364046806,1748976634162,-430.0,0.00016438,2]
[364046807,1748976634173,-440.0,0.00016438,2]
[364046808,1748976634183,-509.1,0.00016438,2]
[364046809,1748976634194,-440.0,0.00016438,2]
[364046810,1748976634204,-430.0,0.00016438,2]
[364046811,1748976634214,-440.0,0.00016438,2]
[364046812,1748976634223,-430.0,0.00016438,2]
[364046813,1748976634234,-430.0,0.00016438,2]
[364046814,1748976634244,-430.0,0.00016438,2]
[364046815,1748976634253,-430.0,0.00016438,2]
[364046816,1748976634263,-430.0,0.00016438,2]
[364046817,1748976634273,-430.0,0.00016438,2]
[364046818,1748976634283,-410.0,0.00016438,2]
[364046819,1748976634294,-440.0,0.00016438,2]
[364046820,1748976634304,-440.0,0.00016438,2]
[364046821,1748976634315,-440.0,0.00016438,2]
[364046822,1748976634325,-430.0,0.00016438,2]
[364046823,1748976634335,-440.0,0.00016438,2]
[364046824,1748976634345,-430.0,0.00016438,2]
[364046825,1748976634356,-440.0,0.00016438,2]
[364046826,1748976634365,-440.0,0.00016438,2]
[364046827,1748976634376,-430.0,0.00016438,2]
[364046828,1748976634386,-440.0,0.00016438,2]
[364046829,1748976634396,-430.0,0.00016438,2]
[364046830,1748976634407,-466.92214919,0.00016438,2]
[364046831,1748976634418,-609.63,0.00016438,2]
[364046832,1748976634428,-458.13271467,0.00016438,2]
[364046833,1748976634442,-430.0,0.00016438,2]
[364046834,1748976634453,-440.0,0.00016438,2]
[364046835,1748976634463,-440.0,0.00016438,2]
[364046836,1748976634472,-434.70968414,0.00016438,2]
[364046837,1748976634484,-532.53,0.00016438,2]
[364046838,1748976634494,-500.0,0.00016438,2]
[364046839,1748976634506,-500.0,0.00016438,2]
[364046840,1748976634517,-568.5,0.00016438,2]
[364046841,1748976634530,-430.0,0.00016438,2]
[364046842,1748976634540,-440.0,0.00016438,2]
[364046843,1748976634549,-440.0,0.00016438,2]
[364046844,1748976634558,-430.0,0.00016438,2]
[364046845,1748976634568,-440.0,0.00016438,2]
[364046846,1748976634578,-440.0,0.00016438,2]
[364046847,1748976634588,-430.0,0.00016438,2]